bitfinex-derivatives/quotes_SOLF0:USTF0_20260202
["timestamp","ask_amount","ask_price","bid_price","bid_amount"]
[1770001135474,38.22902859,100.6,100.53,8.9613]
[1770001135675,29.27322859,100.59,100.5,142.21608636]
[1770001135880,29.27322859,100.56,100.5,2.77948636]
[1770001137182,396.36,100.58,100.5,142.22318636]
[1770001137379,396.42,100.61,100.54,139.3939]
[1770001137578,29.28511452,100.62,100.56,139.3606]
[1770001137778,29.28511452,100.64,100.56,139.3606]
[1770001138080,29.28511452,100.64,100.55,139.3761]
[1770001138676,29.28511452,100.63,100.55,8.9594]
[1770001138879,29.26234032,100.61,100.51,447.0429]
[1770001139083,29.26234032,100.61,100.51,454.9247692]
[1770001139383,38.21734032,100.61,100.53,8.9618]
[1770001139888,29.26234032,100.6,100.52,147.3018692]
[1770001140280,29.26234032,100.59,100.51,447.0429]
[1770001140485,29.26234032,100.59,100.51,456.0058]
[1770001140684,29.26234032,100.59,100.5,2.77948636]
[1770001140685,29.26234032,100.58,100.5,2.77948636]
[1770001140979,139.3115,100.6,100.52,8.9626]
[1770001141187,29.22628473,100.59,100.52,8.9626]
[1770001141486,29.22628473,100.58,100.5,142.22898636]
[1770001141684,29.22628473,100.58,100.51,8.9636]
[1770001141887,29.22628473,100.58,100.51,139.4328]
[1770001142184,552.6384692,100.61,100.52,8.9623]
[1770001142185,29.22628473,100.6,100.52,8.9623]
[1770001142482,29.22628473,100.6,100.52,139.4206]
[1770001143082,7.8818692,100.63,100.52,139.4206]
[1770001143083,29.22773434,100.63,100.54,139.3927]
[1770001143486,38.18123434,100.63,100.56,8.9591]
[1770001143784,38.18123434,100.63,100.54,147.2745692]
[1770001144176,29.22773434,100.62,100.54,147.2745692]
[1770001144580,29.22773434,100.61,100.55,8.96]
[1770001144784,29.22773434,100.61,100.53,139.4079]
[1770001145185,29.22773434,100.61,100.55,8.96]
[1770001146183,29.267763,100.6,100.53,8.9612]
[1770001146388,29.267763,100.59,100.5,142.21558636]
[1770001146789,29.267763,100.59,100.52,8.9627]
[1770001147387,38.224563,100.59,100.52,8.9627]
[1770001148587,8.9576,100.58,100.51,8.9636]
[1770001149290,38.27932892,100.58,100.51,8.9636]
[1770001150592,29.32172892,100.58,100.52,8.9627]
[1770001151692,29.32172892,100.58,100.53,8.9619]
[1770001152291,38.31163272,100.6,100.53,8.9619]
[1770001152589,29.35593272,100.59,100.53,8.9619]
[1770001153190,38.31253272,100.59,100.53,8.9619]
[1770001153796,29.35593272,100.59,100.53,8.9619]
[1770001153987,29.35818794,100.6,100.54,8.9607]
[1770001155098,38.31398794,100.6,100.53,8.9618]
[1770001156498,38.31398794,100.6,100.54,8.9609]
[1770001156701,29.35818794,100.6,100.54,8.9609]
[1770001157689,29.41316956,100.59,100.52,8.962]
[1770001157890,29.41316956,100.59,100.52,139.4162]
[1770001158095,29.41316956,100.59,100.51,139.4332]
[1770001158295,29.41316956,100.59,100.53,8.9618]
[1770001158801,29.41316956,100.59,100.54,8.961]
[1770001159802,29.41316956,100.59,100.55,8.9601]
[1770001159997,29.43216038,100.65,100.56,139.3643]
[1770001160197,29.43216038,100.65,100.56,147.2461692]
[1770001160595,29.43216038,100.65,100.59,139.3241]
[1770001161498,29.43216038,100.65,100.57,139.3508]
[1770001161699,29.43216038,100.65,100.58,139.3376]
[1770001161895,29.43460023,100.68,100.62,8.9537]
[1770001162403,29.43460023,100.68,100.6,139.3059]
[1770001162601,29.43460023,100.68,100.6,8.955]
[1770001163195,29.42176958,100.64,100.56,315.5786]
[1770001163495,29.42176958,100.64,100.56,139.365]
[1770001163696,29.42176958,100.63,100.55,8.9595]
[1770001164495,38.37506958,100.63,100.55,8.9595]
[1770001165201,29.42176958,100.63,100.56,8.959]
[1770001165992,38.37496958,100.63,100.54,139.3841]
[1770001166901,29.42176958,100.63,100.56,8.9588]
[1770001168598,7.8818692,100.65,100.57,8.9581]
[1770001168805,29.46491568,100.65,100.56,139.3584]
[1770001169105,29.46460826,100.64,100.55,139.3761]
[1770001169899,29.46460826,100.63,100.55,139.3761]
[1770001170504,29.46460826,100.63,100.54,139.3841]
[1770001170701,29.46460826,100.62,100.55,8.9593]
[1770001171702,38.41588645,100.64,100.56,139.366]
[1770001172096,426.12308645,100.66,100.58,139.3354]
[1770001172906,426.12308645,100.66,100.57,139.352]
[1770001172907,29.51996305,100.65,100.59,8.9564]
[1770001173499,29.51996305,100.65,100.57,139.352]
[1770001173802,29.51996305,100.65,100.6,8.9556]
[1770001174802,29.52707999,100.62,100.53,139.3946]
[1770001175004,29.52707999,100.62,100.54,139.3931]
[1770001175902,29.52707999,100.61,100.55,8.96]
[1770001177710,29.53199917,100.57,100.5,2.77948636]
[1770001177913,29.53199917,100.57,100.5,142.22528636]
[1770001178502,8.9575,100.58,100.5,142.22528636]
[1770001178710,29.53199917,100.6,100.53,139.4066]
[1770001178903,29.53199917,100.6,100.52,139.4186]
[1770001179811,29.53199917,100.6,100.54,139.394]
[1770001180405,38.48951295,100.59,100.52,8.9627]
[1770001180708,29.53251295,100.59,100.51,139.4356]
[1770001180909,139.3005,100.61,100.51,139.4356]
[1770001180910,29.52127311,100.62,100.53,139.4076]
[1770001181411,29.52127311,100.62,100.55,139.3799]
[1770001181600,29.52127311,100.62,100.56,8.9591]
[1770001181800,426.18127311,100.64,100.56,139.364]
[1770001182315,29.52127311,100.63,100.57,8.9582]
[1770001182714,396.66,100.64,100.56,147.26973013]
[1770001183408,29.52127311,100.65,100.58,8.9574]
[1770001183606,29.52127311,100.65,100.57,139.3521]
[1770001184009,29.52127311,100.65,100.59,8.9564]
[1770001184208,29.52499799,100.67,100.59,139.3247]
[1770001184909,29.52873821,100.66,100.6,8.9555]
[1770001187514,38.45935182,100.69,100.61,8.9546]
[1770001187919,29.51085182,100.68,100.61,8.9546]
[1770001188521,29.51085182,100.68,100.62,8.9538]
[1770001189121,29.51085182,100.68,100.6,147.21583013]
[1770001189122,38.45945182,100.68,100.61,8.9547]
[1770001189519,29.51085182,100.68,100.61,139.2971]
[1770001189719,29.51085182,100.68,100.6,147.21583013]
[1770001190621,29.51085182,100.68,100.62,8.9538]
[1770001191721,29.50595406,100.67,100.61,8.9547]
[1770001192122,29.50595406,100.67,100.6,147.21583013]
[1770001192325,38.45355406,100.7,100.61,139.2937]
[1770001192619,29.50595406,100.72,100.65,139.2417]
[1770001192824,29.50595406,100.72,100.66,8.9498]
[1770001193823,38.45105406,100.72,100.64,139.2519]
[1770001194014,29.49924854,100.71,100.64,139.2519]
[1770001194724,8.9441,100.74,100.66,139.228]
[1770001194920,29.50474726,100.74,100.66,139.228]
[1770001195129,29.50474726,100.74,100.67,147.11863013]
[1770001195527,29.50474726,100.74,100.69,8.9472]
[1770001195926,29.50474726,100.74,100.67,7.90533013]
[1770001196326,29.50474726,100.74,100.66,139.228]
[1770001196827,38.44794726,100.74,100.68,8.9485]
[1770001197829,29.51061279,100.73,100.68,8.9485]
[1770001198517,29.51061279,100.73,100.66,139.228]
[1770001198518,38.45481279,100.73,100.66,8.9496]
[1770001198722,29.51061279,100.72,100.66,8.9496]
[1770001198919,29.51061279,100.72,100.63,139.266]
[1770001200130,29.5124989,100.71,100.65,8.9512]
[1770001200431,29.5124989,100.71,100.64,139.2543]
[1770001200630,29.5124989,100.73,100.67,139.2136]
[1770001200926,29.51258145,100.74,100.67,139.2136]
[1770001201320,29.51258145,100.74,100.67,8.9485]
[1770001201526,38.45388145,100.77,100.68,139.1962]
[1770001201725,29.51258145,100.76,100.7,139.1662]
[1770001201928,29.51258145,100.76,100.7,8.946]
[1770001202427,29.51258145,100.76,100.71,8.9458]
[1770001202832,29.51258145,100.76,100.68,147.10153013]
[1770001203029,29.51258145,100.76,100.7,8.9467]
[1770001203428,29.50623555,100.74,100.66,8.9496]
[1770001203629,29.50623555,100.73,100.66,8.9496]
[1770001204432,433.73156568,100.74,100.65,139.2367]
[1770001204633,29.50623555,100.73,100.64,147.16043013]
[1770001204932,29.50623555,100.73,100.66,139.226]
[1770001205123,29.50623555,100.73,100.65,139.2391]
[1770001205327,29.45688774,100.71,100.62,147.18833013]
[1770001205932,29.45688774,100.67,100.59,139.322]
[1770001206136,29.45688774,100.67,100.6,139.309]
[1770001206331,425.77688774,100.7,100.61,139.2968]
[1770001206634,29.45688774,100.69,100.63,8.9528]
[1770001207035,29.47253817,100.72,100.65,139.2401]
[1770001207227,29.47253817,100.72,100.64,139.2525]
[1770001207426,38.41763817,100.72,100.64,8.9513]
[1770001207735,29.47253817,100.72,100.64,139.2525]
[1770001208329,29.47253817,100.72,100.64,8.9513]
[1770001209232,564.88695649,100.75,100.64,139.2541]
[1770001209536,29.44995649,100.74,100.67,147.11783013]
[1770001209735,29.44995649,100.74,100.66,139.2266]
[1770001210531,29.44995649,100.73,100.67,8.9487]
[1770001211430,29.4356843,100.72,100.65,315.5905]
[1770001211631,29.4356843,100.72,100.65,8.9505]
[1770001211828,29.4356843,100.72,100.64,139.2541]
[1770001212338,29.4356843,100.74,100.67,8.9493]
[1770001212537,29.4356843,100.74,100.65,139.2393]
[1770001212733,29.4356843,100.74,100.66,147.13143013]
[1770001213233,29.41656563,100.73,100.64,147.15943013]
[1770001213438,29.41656563,100.72,100.64,147.15943013]
[1770001213640,29.41656563,100.72,100.63,306.96]
[1770001213938,29.41656563,100.72,100.62,147.17793013]
[1770001214535,29.41656563,100.7,100.62,7.90533013]
[1770001214734,29.41656563,100.7,100.61,446.2881]
[1770001214935,38.36366563,100.7,100.63,8.9528]
[1770001215335,29.41656563,100.7,100.6,147.20333013]
[1770001215536,29.43680127,100.68,100.58,147.24133013]
[1770001215741,29.43680127,100.66,100.57,446.2593]
[1770001216339,29.43680127,100.66,100.57,139.3393]
[1770001216841,29.43680127,100.66,100.59,139.3239]
[1770001217044,29.42592227,100.68,100.59,139.3239]
[1770001217232,38.37542227,100.67,100.6,8.9556]
[1770001217833,29.42592227,100.67,100.6,278.6161]
[1770001218241,38.37442227,100.69,100.6,286.52143013]
[1770001218448,29.42592227,100.69,100.61,139.2971]
[1770001218744,29.42592227,100.69,100.62,139.2809]
[1770001218941,425.69500424,100.72,100.64,139.2537]
[1770001219541,425.69500424,100.72,100.65,139.2399]
[1770001219847,29.41500424,100.75,100.67,139.2141]
[1770001220240,29.41500424,100.75,100.68,8.9482]
[1770001220439,29.41500424,100.75,100.66,147.12393013]
[1770001220638,29.41500424,100.75,100.69,8.9474]
[1770001220942,29.3623495,100.76,100.69,8.9474]
[1770001221244,29.3623495,100.76,100.67,148.1627]
[1770001221539,29.3623495,100.76,100.67,8.9488]
[1770001221540,29.3623495,100.75,100.67,8.9488]
[1770001222750,29.3623495,100.75,100.65,446.7199]
[1770001222751,29.3623495,100.73,100.65,8.9506]
[1770001223446,29.36519651,100.72,100.63,463.65763013]
[1770001223749,29.36519651,100.72,100.63,147.16503013]
[1770001224149,396.3,100.74,100.65,147.14123013]
[1770001224349,29.36519651,100.73,100.65,147.14123013]
[1770001224549,29.36519651,100.73,100.65,7.90533013]
[1770001224750,29.36519651,100.72,100.64,316.3514]
[1770001225748,29.36519651,100.72,100.65,8.9509]
[1770001226043,29.36519651,100.72,100.64,307.4]
[1770001226249,29.36519651,100.72,100.63,147.16503013]
[1770001226446,29.36146539,100.71,100.65,8.9508]
[1770001226652,29.36146539,100.71,100.63,139.2597]
[1770001227052,29.36782687,100.69,100.62,308.04]
[1770001227553,29.36782687,100.69,100.6,147.20293013]
[1770001227758,37.273157,100.72,100.63,139.2676]
[1770001227944,29.36782687,100.72,100.63,139.2676]
[1770001228252,29.36782687,100.7,100.62,7.90533013]
[1770001228451,29.36782687,100.69,100.6,139.2976]
[1770001228953,38.3178482,100.68,100.61,8.9546]
[1770001229256,29.3691482,100.68,100.61,8.9546]
[1770001229549,29.3691482,100.67,100.6,8.9555]
[1770001229757,29.3691482,100.67,100.58,139.3294]
[1770001229957,29.3691482,100.67,100.59,147.22843013]
[1770001230353,29.3691482,100.7,100.62,139.2808]
[1770001230657,288.8891482,100.72,100.64,139.2543]
[1770001231058,29.3691482,100.72,100.65,147.14693013]
[1770001231351,29.33721942,100.75,100.69,139.1839]
[1770001231555,29.33721942,100.76,100.69,7.90533013]
[1770001231757,29.33721942,100.76,100.68,139.1998]
[1770001232054,29.33721942,100.76,100.69,139.1859]
[1770001232261,29.33721942,100.76,100.68,139.1998]
[1770001232556,38.27881942,100.76,100.67,455.83903013]
[1770001233057,29.32559528,100.75,100.67,455.83903013]
[1770001233557,29.32559528,100.75,100.68,139.1999]
[1770001234457,29.32559528,100.75,100.67,317.6687]
[1770001235254,38.26819528,100.75,100.68,8.9484]
[1770001235654,29.32559528,100.75,100.68,139.1994]
[1770001235857,38.23020135,100.77,100.7,8.9464]
[1770001236152,29.28950135,100.76,100.67,447.9335]
[1770001236357,29.28950135,100.75,100.67,308.72]
[1770001236560,29.28950135,100.75,100.66,147.11237393]
[1770001237454,38.23220135,100.75,100.68,8.9478]
[1770001237654,29.28950135,100.75,100.67,139.2133]
[1770001238551,29.28950135,100.75,100.68,147.08917393]
[1770001238753,29.23365418,100.78,100.69,139.1863]
[1770001239254,29.22350259,100.76,100.7,8.9466]
[1770001239448,29.22350259,100.76,100.68,139.1988]
[1770001239848,29.22350259,100.78,100.7,139.1698]
[1770001240055,139.0038,100.83,100.73,139.1296]
[1770001240056,29.22350259,100.81,100.73,139.1296]
[1770001240254,29.22350259,100.84,100.76,139.088]
[1770001240460,29.22350259,100.84,100.78,139.0592]
[1770001240758,29.22350259,100.84,100.76,139.088]
[1770001240956,29.22350259,100.84,100.77,8.9399]
[1770001241258,29.22350259,100.84,100.77,139.0753]
[1770001241655,29.22350259,100.84,100.78,148.0009]
[1770001243052,29.22350259,100.84,100.78,8.9395]
[1770001243759,29.22350259,100.84,100.77,139.0758]
[1770001244160,29.22350259,100.84,100.76,148.0306]
[1770001244659,29.22350259,100.84,100.75,421.48927393]
[1770001245361,29.22350259,100.84,100.78,8.9395]
[1770001245961,29.275316,100.86,100.79,8.9386]
[1770001246865,29.27754835,100.85,100.77,146.96337393]
[1770001247065,29.27754835,100.84,100.75,146.98927393]
[1770001247256,29.27754835,100.83,100.74,451.0353]
[1770001247566,29.27754835,100.83,100.73,147.00917393]
[1770001247859,38.21384835,100.82,100.73,147.00917393]
[1770001248064,38.21384835,100.82,100.72,451.1338]
[1770001248065,29.27754835,100.81,100.72,451.1338]
[1770001248562,38.21554835,100.8,100.73,8.9435]
[1770001249164,29.27754835,100.8,100.72,451.1338]
[1770001250162,29.27805088,100.83,100.74,278.2261]
[1770001250361,29.27805088,100.81,100.72,451.1338]
[1770001250665,29.27805088,100.81,100.73,147.02127393]
[1770001251170,29.29377463,100.8,100.72,312.0]
[1770001251353,29.29377463,100.8,100.71,7.89037393]
[1770001251554,38.23267463,100.79,100.72,8.9445]
[1770001251865,29.29377463,100.79,100.72,8.9445]
[1770001253061,38.23277463,100.79,100.72,8.9445]
[1770001253259,29.29290473,100.78,100.7,452.4196]
[1770001253669,29.29290473,100.78,100.71,139.154]
[1770001253863,29.29290473,100.76,100.67,139.2137]
[1770001254967,29.29290473,100.76,100.68,139.1885]
[1770001255164,29.29290473,100.76,100.67,139.2137]
[1770001255463,29.29572846,100.73,100.66,8.95]
[1770001255661,29.29572846,100.73,100.66,139.2219]
[1770001256661,29.29572846,100.75,100.68,8.9483]
[1770001257959,38.23812846,100.75,100.68,8.9483]
[1770001258165,29.2888664,100.74,100.67,8.9493]
[1770001258671,29.2888664,100.73,100.67,8.9493]
[1770001259365,38.2331664,100.73,100.65,8.9505]
[1770001259669,38.2331664,100.73,100.65,139.2411]
[1770001260765,29.28148619,100.71,100.62,147.16207393]
[1770001260969,29.30266487,100.7,100.62,139.2833]
[1770001261268,29.30266487,100.7,100.63,139.269]
[1770001261466,29.30266487,100.72,100.64,139.2517]
[1770001261861,29.30266487,100.72,100.65,8.9509]
[1770001262066,29.30266487,100.72,100.63,139.269]
[1770001262261,8.9447,100.73,100.66,8.9502]
[1770001262465,29.30266487,100.74,100.66,8.9502]
[1770001262769,29.30266487,100.73,100.66,8.9502]
[1770001262965,29.30296846,100.72,100.64,16.84177393]
[1770001263367,38.24986846,100.7,100.62,16.84367393]
[1770001263569,29.30296846,100.69,100.6,147.18837393]
[1770001263762,29.30296846,100.68,100.59,139.3119]
[1770001265071,29.30296846,100.68,100.61,139.2958]
[1770001265570,29.33807742,100.71,100.64,8.952]
[1770001265771,29.33807742,100.71,100.64,147.14267393]
[1770001265966,29.33807742,100.71,100.63,8.9525]
[1770001265967,29.33807742,100.7,100.63,8.9525]
[1770001266273,29.33807742,100.69,100.6,7.89037393]
[1770001266570,8.9486,100.68,100.61,8.9546]
[1770001267169,29.33301399,100.67,100.6,8.9554]
[1770001267671,29.33301399,100.67,100.61,8.9547]
[1770001268365,29.33301399,100.67,100.6,7.89037393]
[1770001268563,29.33301399,100.67,100.59,139.3134]
[1770001268766,29.33301399,100.67,100.6,139.3078]
[1770001269872,29.31551447,100.69,100.62,8.9536]
[1770001270173,29.31551447,100.69,100.62,147.17017393]
[1770001270873,29.32918889,100.68,100.6,7.89037393]
[1770001271172,29.32918889,100.68,100.59,139.3134]
[1770001271871,29.32918889,100.68,100.58,7.89037393]
[1770001271872,29.32918889,100.67,100.58,147.22777393]
[1770001272069,29.32918889,100.67,100.6,139.3074]
[1770001272273,29.32918889,100.67,100.62,8.9538]
[1770001272869,29.32918889,100.67,100.6,16.84527393]
[1770001273472,29.32918889,100.67,100.61,8.9547]
[1770001273970,29.32918889,100.67,100.6,147.20087393]
[1770001274171,396.3,100.69,100.62,147.17367393]
[1770001274475,29.3115563,100.7,100.62,147.17367393]
[1770001274970,29.3115563,100.7,100.63,139.2676]
[1770001275376,29.30685071,100.73,100.65,139.2403]
[1770001276072,38.25105071,100.73,100.66,8.9503]
[1770001276274,29.30685071,100.71,100.62,147.17367393]
[1770001276576,29.30685071,100.7,100.64,8.9519]
[1770001277275,29.30289563,100.73,100.64,147.14527393]
[1770001277866,29.30289563,100.71,100.64,8.9512]
[1770001278068,29.30289563,100.7,100.62,7.89037393]
[1770001278274,38.25059563,100.69,100.62,8.953]
[1770001278877,38.26864521,100.68,100.6,156.14437393]
[1770001279077,38.26864521,100.68,100.6,147.18947393]
[1770001279475,29.32004521,100.68,100.61,139.295]
[1770001280274,29.32004521,100.68,100.63,8.9529]
[1770001280469,29.32004521,100.68,100.61,139.295]
[1770001280681,29.32004521,100.68,100.59,139.3136]
[1770001280973,29.32004521,100.68,100.62,8.9537]
[1770001281584,29.32004521,100.68,100.62,139.2828]
[1770001281781,143.1505,100.72,100.62,147.17317393]
[1770001281782,29.32284854,100.71,100.62,147.17317393]
[1770001282380,29.32284854,100.69,100.62,148.2358]
[1770001282687,29.32284854,100.69,100.62,139.2828]
[1770001283388,539.4905,100.72,100.64,147.14467393]
[1770001283389,434.60904681,100.72,100.64,147.14467393]
[1770001283583,29.32344681,100.75,100.67,139.2138]
[1770001283782,29.32344681,100.78,100.7,139.1698]
[1770001283981,29.32344681,100.78,100.71,139.1569]
[1770001284182,29.32344681,100.78,100.7,147.06017393]
[1770001284484,29.32344681,100.78,100.71,8.9457]
[1770001284684,29.32344681,100.77,100.68,147.08937393]
[1770001284881,38.26524681,100.76,100.68,8.9483]
[1770001285385,29.32344681,100.76,100.68,139.1997]
[1770001285785,29.32344681,100.76,100.67,147.10387393]
[1770001286082,29.32344681,100.76,100.65,455.0696]
[1770001286083,29.33161192,100.73,100.65,323.73037393]
[1770001286289,29.33161192,100.73,100.65,7.89037393]
[1770001286483,38.27591192,100.73,100.66,8.9502]
[1770001287688,38.27591192,100.73,100.67,8.9492]
[1770001287689,29.33161192,100.73,100.67,8.9492]
[1770001287992,405.2626,100.75,100.67,147.09877393]
[1770001287993,396.32,100.75,100.67,147.09877393]
[1770001288193,29.33548329,100.76,100.67,147.09877393]
[1770001288396,38.27788329,100.75,100.68,8.9484]
[1770001288689,29.33548329,100.75,100.67,147.10217393]
[1770001288891,29.33548329,100.75,100.69,8.9475]
[1770001289095,29.33548329,100.75,100.68,139.1945]
[1770001289499,29.33548329,100.75,100.68,8.9478]
[1770001289685,29.33548329,100.75,100.67,147.10217393]
[1770001290087,29.33548329,100.75,100.68,139.1998]
[1770001290495,29.32821232,100.77,100.69,147.07667393]
[1770001290792,29.32821232,100.76,100.68,139.1998]
[1770001291298,29.32821232,100.76,100.7,8.9467]
[1770001291687,38.26971232,100.76,100.69,8.9475]
[1770001291991,29.32936957,100.73,100.65,7.89037393]
[1770001292191,29.32936957,100.73,100.64,139.2427]
[1770001292394,38.27446957,100.72,100.65,8.9509]
[1770001293497,29.33193688,100.71,100.65,8.9509]
[1770001293894,29.33193688,100.7,100.63,7.89037393]
[1770001294093,29.33193688,100.7,100.62,139.2711]
[1770001294294,29.33193688,100.7,100.63,139.2671]
[1770001294494,29.33193688,100.7,100.62,139.2711]
[1770001294495,29.33193688,100.69,100.62,139.2711]
[1770001295193,38.27963688,100.69,100.6,7.89557405]
[1770001295400,38.27963688,100.69,100.6,147.20607405]
[1770001295594,29.32762356,100.68,100.61,139.2964]
[1770001295791,29.32762356,100.68,100.62,8.9535]
[1770001296200,38.27642356,100.68,100.6,147.20477405]
[1770001296598,38.27642356,100.68,100.61,8.9546]
[1770001300002,29.32571862,100.66,100.58,462.98527405]
[1770001300304,29.32571862,100.66,100.58,147.22527405]
[1770001300698,38.27611862,100.66,100.58,156.18187405]
[1770001300898,38.27611862,100.66,100.58,16.85217405]
[1770001301099,38.27611862,100.66,100.58,8.9566]
[1770001301394,29.32435412,100.64,100.58,8.9566]
[1770001301795,29.32435412,100.62,100.54,147.27617405]
[1770001301996,168.60845412,100.62,100.52,147.30447405]
[1770001302195,29.32435412,100.61,100.52,147.30447405]
[1770001302995,29.32377596,100.59,100.51,139.4265]
[1770001303195,29.32377596,100.59,100.5,10.67506041]
[1770001303196,29.32377596,100.58,100.5,10.67506041]
[1770001303391,29.32377596,100.57,100.5,2.77948636]
[1770001303599,29.32377596,100.55,100.5,2.77948636]
[1770001304000,38.28407596,100.55,100.5,2.77948636]
[1770001304200,535.713,100.57,100.5,2.77948636]
[1770001304201,425.68377596,100.57,100.5,2.77948636]
[1770001304396,29.32377596,100.56,100.5,2.77948636]
[1770001306702,29.38598615,100.54,100.45,156.37047405]
[1770001306904,29.38598615,100.54,100.45,147.40207405]
[1770001307500,27.99624297,100.53,100.44,462.84827405]
[1770001307803,27.99624297,100.53,100.44,147.42827405]
[1770001308411,27.99624297,100.53,100.45,8.9684]
[1770001308906,167.41824297,100.52,100.43,8.9703]
[1770001309205,28.05493622,100.49,100.4,139.5798]
[1770001309597,28.05493622,100.49,100.41,147.46797405]
[1770001310000,28.05493622,100.49,100.42,139.5604]
[1770001310405,28.05493622,100.49,100.42,139.5583]
[1770001310607,424.65493622,100.51,100.44,148.499]
[1770001310911,28.05493622,100.51,100.44,8.9696]
[1770001311108,28.05493622,100.51,100.45,7.89557405]
[1770001311313,28.06279048,100.54,100.45,156.38237405]
[1770001311708,28.06279048,100.54,100.46,139.5031]
[1770001311902,28.06279048,100.54,100.47,156.35307405]
[1770001312410,28.06279048,100.54,100.47,16.86237405]
[1770001312807,424.74279048,100.56,100.48,148.4429]
[1770001313211,28.05071484,100.55,100.48,8.9658]
[1770001313405,28.05071484,100.55,100.47,147.38677405]
[1770001313406,28.05071484,100.55,100.47,7.89557405]
[1770001314512,28.05071484,100.54,100.46,8.9676]
[1770001315315,28.04676562,100.53,100.45,7.89557405]
[1770001315704,28.04676562,100.53,100.45,16.86427405]
[1770001315910,536.1619,100.55,100.45,156.38327405]
[1770001315911,28.04676562,100.52,100.45,156.38327405]
[1770001316106,28.04676562,100.52,100.45,16.86427405]
[1770001316914,28.04676562,100.52,100.45,156.38157405]
[1770001317317,28.04676562,100.52,100.46,8.9679]
[1770001319116,28.0958459,100.54,100.47,8.9666]
[1770001319316,28.0958459,100.54,100.47,16.86217405]
[1770001319619,28.0958459,100.54,100.49,8.9652]
[1770001320017,28.0958459,100.55,100.46,147.40047405]
[1770001320416,28.0958459,100.54,100.46,7.89557405]
[1770001320717,28.0958459,100.5,100.42,147.45397405]
[1770001320916,28.08723543,100.52,100.44,7.89557405]
[1770001321118,28.08723543,100.55,100.46,147.39737405]
[1770001321321,28.08723543,100.55,100.47,139.4912]
[1770001321511,28.08723543,100.55,100.48,147.37177405]
[1770001321917,28.08723543,100.55,100.46,139.5018]
[1770001322120,28.08723543,100.55,100.48,8.9661]
[1770001322624,28.08723543,100.49,100.39,139.5902]
[1770001322818,28.08723543,100.49,100.39,147.48577405]
[1770001323019,28.08112969,100.48,100.39,147.48577405]
[1770001323219,28.08112969,100.48,100.41,147.46927405]
[1770001323421,28.08112969,100.51,100.44,139.5283]
[1770001323723,28.08112969,100.53,100.45,7.89557405]
[1770001324320,28.08112969,100.51,100.43,147.44007405]
[1770001324622,396.92,100.53,100.46,139.5037]
[1770001324822,425.00112969,100.53,100.45,16.86407405]
[1770001325316,28.04611925,100.5,100.4,139.5752]
[1770001325518,28.04611925,100.49,100.41,139.5734]
[1770001326116,28.04611925,100.49,100.4,7.89557405]
[1770001326318,28.04611925,100.49,100.39,139.5973]
[1770001326617,28.04611925,100.49,100.4,139.5883]
[1770001327018,28.02827046,100.48,100.39,139.5973]
[1770001327223,28.02827046,100.48,100.41,139.5737]
[1770001327420,28.02827046,100.48,100.4,147.47967405]
[1770001327722,28.02827046,100.48,100.41,8.9723]
[1770001328118,28.02827046,100.48,100.41,148.5469]
[1770001328318,36.99271259,100.51,100.42,139.5584]
[1770001328518,28.02831259,100.51,100.44,139.5289]
[1770001329326,28.019471,100.5,100.41,467.27017405]
[1770001329623,28.019471,100.5,100.41,147.47017405]
[1770001329922,28.019471,100.5,100.43,147.44067405]
[1770001330718,28.019471,100.5,100.44,8.9697]
[1770001331223,28.019471,100.5,100.42,139.5591]
[1770001331224,28.019471,100.5,100.42,8.9713]
[1770001331821,27.98505455,100.49,100.4,476.73627405]
[1770001332426,27.98505455,100.48,100.4,16.86837405]
[1770001332623,27.98505455,100.48,100.4,156.45657405]
[1770001333520,27.98505455,100.48,100.4,16.86837405]
[1770001333723,27.98505455,100.48,100.4,8.9728]
[1770001333924,28.12976984,100.47,100.38,147.49997405]
[1770001334126,28.12976984,100.46,100.36,147.53887405]
[1770001334328,28.12976984,100.46,100.38,139.6146]
[1770001334723,28.12976984,100.45,100.37,148.6051]
[1770001334928,28.12976984,100.45,100.37,8.9755]
[1770001335126,28.12976984,100.45,100.36,8.9768]
[1770001335127,28.13596374,100.43,100.36,8.9768]
[1770001335724,28.13596374,100.42,100.35,8.9778]
[1770001336727,28.13596374,100.42,100.29,139.7405]
[1770001336728,28.13596374,100.36,100.29,139.7405]
[1770001337632,28.13713321,100.39,100.3,147.62117405]
[1770001337933,28.13713321,100.38,100.29,139.7405]
[1770001338129,28.13713321,100.38,100.3,16.87777405]
[1770001338437,28.13713321,100.38,100.3,147.61307405]